bitfinex-derivatives/quotes_ETHF0:USTF0_20260204
["timestamp","ask_amount","ask_price","bid_price","bid_amount"]
[1770219708376,5.33250507,2166.5,2166.1,0.00346763]
[1770219708572,5.33250507,2166.6,2166.2,21.77853648]
[1770219708974,5.33250507,2166.6,2166.1,0.00346763]
[1770219708975,0.00360186,2166.7,2166.1,0.00346763]
[1770219709178,1.06667186,2166.7,2164.5,0.461]
[1770219709478,5.33250507,2166.4,2164.7,21.25038306]
[1770219709870,12.7282234,2166.4,2164.8,7.63286135]
[1770219710080,5.33250507,2166.1,2164.8,7.63286135]
[1770219710277,7.39571833,2166.2,2164.9,21.25038306]
[1770219710471,8.45906833,2166.1,2164.9,21.25038306]
[1770219710672,5.33250507,2165.7,2164.9,21.25038306]
[1770219710873,5.33250507,2165.8,2164.9,21.25038306]
[1770219711276,7.39571833,2165.9,2164.9,21.25038306]
[1770219711671,12.7282234,2165.9,2164.9,21.25038306]
[1770219711872,5.33250507,2165.6,2164.9,21.25038306]
[1770219712078,7.39571833,2165.7,2164.9,21.25038306]
[1770219712272,8.45931833,2165.6,2164.8,0.00353196]
[1770219712476,8.45956833,2165.1,2163.6,0.461]
[1770219712679,8.45956833,2165.1,2153.2,9.35208809]
[1770219712680,5.33250507,2165.2,2163.8,7.63286135]
[1770219712976,7.39571833,2165.2,2163.8,7.63286135]
[1770219713280,7.39571833,2165.2,2162.9,1.0649]
[1770219713281,0.461,2165.5,2164.0,7.63286135]
[1770219713574,0.46438193,2165.5,2164.0,7.63629256]
[1770219713772,40.8,2165.4,2164.2,7.47000753]
[1770219713975,0.46438193,2165.5,2164.2,7.47000753]
[1770219714176,0.46438193,2165.5,2164.4,7.47000753]
[1770219714377,9.1189455,2165.5,2164.1,21.25038306]
[1770219714576,8.0552955,2165.5,2164.1,21.25038306]
[1770219714776,8.0552955,2165.5,2164.2,7.47000753]
[1770219714974,0.46438193,2165.5,2164.2,7.47000753]
[1770219715175,0.46438193,2165.5,2164.4,7.47000753]
[1770219715475,7.59091357,2166.6,2164.8,7.47000753]
[1770219715879,7.59091357,2166.6,2165.0,7.47000753]
[1770219716080,40.8,2166.5,2165.0,7.47000753]
[1770219716379,40.8,2166.5,2165.1,21.25038306]
[1770219716682,7.59091357,2166.4,2165.1,28.72039059]
[1770219717181,7.82204357,2166.4,2165.1,21.25038306]
[1770219717783,7.59091357,2166.0,2165.1,21.25038306]
[1770219717979,7.82210357,2165.8,2164.5,0.461]
[1770219718276,7.82210357,2165.8,2164.2,7.47000753]
[1770219718277,0.461,2165.9,2164.7,7.17831912]
[1770219718780,8.18479017,2165.9,2164.8,21.25038306]
[1770219718981,8.18479017,2165.9,2164.4,21.25038306]
[1770219718982,8.41598017,2165.9,2164.4,21.25038306]
[1770219719378,7.95502017,2165.5,2164.4,21.25038306]
[1770219720184,7.95503017,2165.4,2164.4,21.25038306]
[1770219720377,2.61219283,2165.8,2164.5,7.17831912]
[1770219720585,8.18479017,2165.9,2164.5,7.17831912]
[1770219720777,8.18479017,2165.9,2164.0,0.00343121]
[1770219720778,1.06357,2165.7,2164.6,21.25038306]
[1770219720985,0.23124,2165.4,2164.1,28.42870218]
[1770219721281,7.95503017,2165.4,2164.1,28.42870218]
[1770219721481,2.61219283,2165.8,2164.6,7.17831912]
[1770219721687,2.61219283,2166.1,2164.6,7.17831912]
[1770219721881,40.8,2166.4,2164.5,0.462]
[1770219721882,0.234625,2166.5,2164.8,7.17831912]
[1770219722084,0.234625,2166.5,2164.7,21.25038306]
[1770219722085,0.003505,2166.5,2165.0,7.17831912]
[1770219722385,0.462,2167.2,2165.6,7.17831912]
[1770219722581,0.23108,2166.9,2165.6,7.17831912]
[1770219722781,0.23112,2166.5,2165.8,7.17831912]
[1770219723084,0.23112,2166.5,2163.9,4.2984]
[1770219723085,0.23112,2166.5,2164.6,28.42870218]
[1770219723284,2.61219283,2166.8,2164.7,7.17831912]
[1770219723481,0.462,2167.2,2165.6,7.17831912]
[1770219723787,0.23106,2167.1,2165.6,7.17831912]
[1770219724090,5.87685119,2167.0,2165.8,7.17831912]
[1770219724282,0.462,2167.2,2165.8,7.17831912]
[1770219724486,0.462,2167.2,2166.0,7.17831912]
[1770219724684,1.06301,2166.8,2165.7,21.25038306]
[1770219724985,2.61219283,2166.8,2165.8,7.17831912]
[1770219725187,5.89196186,2166.7,2165.8,7.17831912]
[1770219725383,5.89196186,2166.6,2165.8,7.17831912]
[1770219725588,40.8,2166.8,2165.8,7.17831912]
[1770219725786,6.12935718,2166.7,2165.8,7.17831912]
[1770219725984,5.89825718,2166.6,2165.8,7.17831912]
[1770219726282,40.8,2166.8,2165.8,7.17831912]
[1770219726486,2.61219283,2166.9,2165.8,7.17831912]
[1770219726683,5.91120007,2166.8,2165.8,7.17831912]
[1770219726881,2.61219283,2167.1,2166.0,7.17831912]
[1770219727087,2.84331283,2166.5,2165.6,7.17831912]
[1770219727385,46.70451177,2166.4,2165.5,7.17831912]
[1770219727583,2.61219283,2167.0,2165.5,7.17831912]
[1770219727781,5.90958818,2166.9,2165.7,7.17831912]
[1770219727983,40.8,2166.8,2165.7,7.17831912]
[1770219728184,2.61219283,2167.1,2165.9,7.17831912]
[1770219728383,8.52084042,2167.1,2165.9,7.17831912]
[1770219728684,5.90864759,2167.0,2165.9,7.17831912]
[1770219728884,5.91171233,2166.9,2166.0,28.42870218]
[1770219729091,6.14280233,2166.8,2165.7,7.17831912]
[1770219729287,6.14281233,2166.7,2165.7,7.17831912]
[1770219729487,2.61219283,2166.5,2165.7,7.17831912]
[1770219729683,2.61219283,2166.1,2165.3,7.17831912]
[1770219729988,8.52390516,2166.0,2165.3,7.17831912]
[1770219730191,8.52390516,2165.9,2165.4,21.25038306]
[1770219730492,2.61219283,2165.6,2164.8,28.42870218]
[1770219730681,2.61769905,2165.6,2164.8,21.25038306]
[1770219730880,2.61219283,2165.5,2164.8,21.25038306]
[1770219731084,0.00550622,2165.6,2164.9,7.17831912]
[1770219731384,2.61219283,2166.2,2164.9,7.17831912]
[1770219731585,5.88044934,2166.1,2165.1,7.17831912]
[1770219731789,0.23119,2165.8,2165.1,7.17831912]
[1770219731988,2.61219283,2165.6,2164.7,7.17831912]
[1770219732190,8.49264217,2165.5,2164.8,21.25038306]
[1770219732486,0.00376344,2165.6,2164.8,21.25038306]
[1770219732487,5.88044934,2165.4,2164.8,21.25038306]
[1770219732683,0.00376344,2165.6,2164.9,28.42870218]
[1770219732883,2.84717627,2165.6,2164.7,21.25038306]
[1770219733083,8.49707409,2165.5,2164.7,21.25038306]
[1770219733290,8.49707409,2165.4,2164.8,7.17831912]
[1770219733484,6.89679134,2166.2,2164.9,28.42870218]
[1770219733785,1.52513,2166.6,2164.9,28.42870218]
[1770219733786,6.66563134,2166.5,2164.9,7.17831912]
[1770219733994,7.35874134,2166.6,2165.1,7.17831912]
[1770219734291,14.38942151,2166.2,2164.8,21.25038306]
[1770219734487,0.2312,2165.7,2164.8,21.25038306]
[1770219734688,0.23125,2165.3,2164.6,0.00447597]
[1770219734883,14.38942151,2165.3,2163.5,7.17831912]
[1770219735088,6.89690134,2165.1,2163.6,7.17831912]
[1770219735290,6.66563134,2164.6,2163.6,7.17831912]
[1770219735589,6.66563134,2164.7,2163.6,7.17831912]
[1770219735789,6.66563134,2164.7,2163.7,28.42870218]
[1770219735991,6.67091426,2164.7,2163.7,7.18215936]
[1770219736190,6.66563134,2164.4,2163.7,1.39752063]
[1770219736391,14.38942151,2164.4,2163.8,19.25466243]
[1770219736591,6.67091426,2164.7,2163.8,12.07557096]
[1770219736790,0.00528292,2164.7,2163.8,12.07557096]
[1770219736995,14.62601443,2164.7,2163.8,12.07557096]
[1770219737192,14.38942151,2164.3,2163.8,12.07557096]
[1770219737386,14.38942151,2164.3,2163.7,0.00384024]
[1770219737583,7.72379017,2164.3,2163.7,0.00384024]
[1770219737888,7.95517017,2164.1,2162.3,0.46245982]
[1770219738089,40.34827867,2163.5,2162.4,12.07557096]
[1770219738391,6.89702134,2164.0,2162.4,12.07557096]
[1770219738392,40.81027867,2163.9,2162.5,7.17831912]
[1770219738591,0.462,2163.9,2162.6,7.40984912]
[1770219738788,40.34827867,2164.2,2162.9,7.17831912]
[1770219738987,40.34827867,2164.3,2162.9,7.17831912]
[1770219739190,40.34827867,2164.3,2163.1,7.17831912]
[1770219739583,40.34827867,2164.6,2163.5,7.17831912]
[1770219739788,0.00528292,2164.7,2163.5,7.17831912]
[1770219739990,48.07206884,2164.6,2163.6,12.07557096]
[1770219740190,48.07206884,2164.6,2163.1,7.17831912]
[1770219740191,48.30338884,2164.6,2163.1,7.17831912]
[1770219740390,48.30339884,2164.5,2163.2,19.25389008]
[1770219740591,40.34827867,2164.4,2163.3,7.17831912]
[1770219740792,0.00528292,2164.7,2163.3,7.17831912]
[1770219740993,0.00528292,2164.7,2163.7,7.17831912]
[1770219741189,40.34827867,2165.2,2164.1,7.17831912]
[1770219741391,40.34827867,2165.8,2164.5,7.17831912]
[1770219741693,40.34827867,2165.6,2164.5,7.17831912]
[1770219741892,40.34827867,2165.5,2164.6,12.07557096]
[1770219742090,40.34827867,2165.6,2164.6,12.07557096]
[1770219742391,40.34827867,2166.0,2164.7,7.17831912]
[1770219742888,40.34827867,2166.0,2164.8,19.25389008]
[1770219743093,40.34827867,2166.4,2165.1,0.23126]
[1770219743290,40.34827867,2166.5,2165.2,7.17831912]
[1770219743491,40.34827867,2166.5,2165.2,19.25389008]
[1770219743793,0.00421634,2166.5,2165.3,7.59434782]
[1770219744287,40.34827867,2166.9,2165.5,7.59434782]
[1770219744589,47.97978397,2166.9,2165.5,7.59434782]
[1770219744789,47.97978397,2166.9,2165.6,12.07557096]
[1770219745393,4.8751805,2166.8,2165.6,12.07557096]
[1770219745690,7.4004253,2166.6,2165.6,12.07557096]
[1770219745888,4.8751805,2166.5,2165.6,19.66991878]
[1770219746094,47.74870397,2166.8,2165.6,19.66991878]
[1770219746095,4.8751805,2166.4,2165.6,19.66991878]
[1770219746389,47.74870397,2166.8,2165.6,19.66991878]
[1770219746390,88.54870397,2166.8,2165.6,19.66991878]
[1770219746592,45.21898606,2166.7,2165.6,19.66991878]
[1770219746794,4.87070739,2166.6,2165.6,19.66991878]
[1770219746984,4.87070739,2166.5,2165.6,19.66991878]
[1770219747186,4.87070739,2166.4,2165.6,12.07557096]
[1770219747486,4.87070739,2166.3,2165.6,12.07557096]
[1770219747692,4.87070739,2166.2,2165.6,12.07557096]
[1770219747887,40.34827867,2166.7,2165.7,6.9392683]
[1770219748195,0.00381686,2166.9,2165.7,6.9392683]
[1770219748493,0.00381686,2166.9,2165.8,19.01483926]
[1770219748690,7.40424216,2166.9,2165.3,7.1705083]
[1770219749090,7.40424216,2166.9,2165.2,12.07557096]
[1770219749091,7.40424216,2166.9,2165.5,6.9392683]
[1770219749485,0.00381686,2166.9,2165.9,6.9392683]
[1770219749690,0.00381686,2166.9,2165.4,6.9392683]
[1770219750085,0.00381686,2166.9,2165.1,0.462]
[1770219750086,7.6315253,2166.7,2165.5,12.07557096]
[1770219750291,7.4004253,2166.6,2165.3,12.07557096]
[1770219750693,7.4004253,2166.5,2165.3,12.07557096]
[1770219750898,7.4004253,2166.3,2165.3,12.07557096]
[1770219751796,7.4004253,2166.7,2165.4,7.1374535]
[1770219752193,40.34827867,2166.8,2165.6,6.90557919]
[1770219752391,40.57936867,2166.8,2165.6,6.90557919]
[1770219752593,7.4004253,2166.5,2165.7,12.07557096]
[1770219752889,7.4004253,2166.5,2165.2,12.07557096]
[1770219753087,7.4004253,2166.2,2165.2,12.07557096]
[1770219753291,7.4004253,2165.9,2165.2,12.07198748]
[1770219753493,47.74870397,2165.8,2165.2,12.07198748]
[1770219753688,7.4004253,2165.8,2165.2,12.07198748]
[1770219753900,47.74870397,2165.8,2164.6,0.00335897]
[1770219754091,7.4004253,2165.2,2164.7,12.07198748]
[1770219754302,7.4004253,2165.2,2163.6,6.88712858]
[1770219754303,40.34827867,2164.9,2163.6,6.88712858]
[1770219754598,0.46549119,2165.2,2164.1,7.59434782]
[1770219754795,0.46549119,2165.2,2164.1,7.82571782]
[1770219754996,47.74870397,2165.1,2163.6,7.59434782]
[1770219755192,5.85865367,2165.2,2163.6,0.00551867]
[1770219755193,7.6317553,2164.6,2163.6,0.00551867]
[1770219755393,40.34827867,2164.4,2163.6,0.00551867]
[1770219755588,7.6317553,2164.6,2163.6,7.59986649]
[1770219755589,37.84827867,2164.6,2163.6,7.59986649]
[1770219755992,5.39316248,2165.1,2163.6,7.59986649]
[1770219756288,7.6317153,2164.9,2163.6,7.59986649]
[1770219756593,0.23131,2164.7,2163.6,7.59986649]
[1770219756798,7.6317953,2164.1,2162.5,7.59434782]
[1770219756999,7.8624253,2164.1,2162.5,7.82588782]
[1770219757196,7.4004253,2163.8,2162.5,7.59434782]
[1770219757397,0.462,2164.1,2162.5,7.59434782]
[1770219757591,0.462,2164.1,2162.9,7.59434782]
[1770219757796,0.462,2164.1,2162.9,7.59868783]
[1770219758499,1.06405,2164.7,2162.9,7.59868783]
[1770219758500,5.39316248,2164.9,2163.3,7.82580782]
[1770219758806,12.79707897,2165.2,2163.5,7.59434782]
[1770219759099,12.79707897,2165.2,2164.2,7.59434782]
[1770219759100,0.00349119,2165.2,2164.2,7.59434782]
[1770219759597,40.8,2165.9,2164.4,7.59434782]
[1770219759797,4.74027924,2165.8,2164.4,7.59434782]
[1770219759997,4.74027924,2165.7,2164.4,7.82568782]
[1770219760199,4.74027924,2165.6,2164.4,7.82568782]
[1770219760399,40.8,2165.9,2164.4,7.59434782]
[1770219760597,4.73883711,2165.8,2164.4,7.59434782]
[1770219760799,48.20512777,2165.9,2164.4,7.59434782]
[1770219760800,4.73883711,2165.7,2164.4,7.59434782]
[1770219760992,0.00470247,2165.9,2164.5,0.23133]
[1770219761201,4.73763791,2165.8,2164.6,7.59434782]
[1770219761401,4.73763791,2165.7,2164.6,7.59434782]
[1770219761701,0.00470247,2165.9,2164.6,7.59434782]
[1770219761702,4.73748783,2165.6,2164.6,7.59434782]
[1770219761904,4.73692862,2165.5,2164.6,7.59434782]
[1770219762102,4.73692862,2165.4,2164.6,7.59434782]
[1770219762302,5.62904495,2165.9,2164.6,7.59434782]
[1770219762303,7.4004253,2165.7,2164.6,7.59434782]
[1770219762604,4.73563232,2165.6,2164.5,7.59845614]
[1770219762803,4.73563232,2165.5,2164.5,0.00410832]
[1770219763005,12.13605762,2165.4,2164.5,0.00410832]
[1770219763304,4.73563232,2165.3,2164.5,0.00410832]
[1770219763501,4.73563232,2165.2,2164.5,0.00410832]
[1770219763802,12.13605762,2165.1,2163.7,7.59434782]
[1770219764000,7.4004253,2164.7,2163.3,8.05634782]
[1770219764200,4.73563232,2164.6,2163.3,8.05634782]
[1770219764398,7.4004253,2164.3,2162.9,7.82584782]
[1770219764604,5.39316248,2165.0,2163.3,7.59434782]
[1770219764801,4.73141071,2164.9,2164.0,7.59434782]
[1770219764998,7.40438202,2165.0,2163.6,7.59434782]
[1770219765197,4.73052596,2164.9,2163.6,7.59434782]
[1770219765502,0.00395672,2165.0,2164.0,0.23138]
[1770219765705,0.00395672,2165.0,2164.3,7.59434782]
[1770219765900,7.4004253,2165.8,2164.3,7.59434782]
[1770219766096,12.13288733,2165.7,2164.3,7.59434782]
[1770219766305,4.73246203,2165.6,2164.3,7.59434782]
[1770219766898,12.1369495,2165.6,2164.3,7.59434782]
[1770219767102,4.96369203,2165.5,2164.3,7.59434782]
[1770219767302,7.40448747,2165.6,2164.3,7.59434782]
[1770219767502,4.73174406,2165.5,2164.3,7.59434782]
[1770219767705,4.73174406,2165.4,2164.3,7.59434782]
[1770219768005,7.40448747,2165.6,2164.3,7.59434782]
[1770219768306,7.6316553,2165.4,2163.7,7.59434782]
[1770219768508,12.13223006,2165.3,2163.7,7.59434782]
[1770219768708,4.73180476,2165.2,2163.9,7.59434782]
[1770219769000,0.00406217,2165.6,2164.1,7.82571782]
[1770219769206,4.73910283,2165.5,2164.1,7.82571782]
[1770219769409,4.73910283,2165.4,2164.1,7.82571782]
[1770219769604,0.00406217,2165.6,2164.1,7.59434782]
[1770219769605,7.4004253,2165.2,2164.1,7.59434782]
[1770219769798,4.74289237,2165.1,2164.1,7.59434782]
[1770219769998,4.74256367,2165.0,2163.7,7.59434782]
[1770219770305,12.14204733,2164.9,2163.7,7.59434782]
[1770219770604,0.23528217,2165.6,2164.1,7.59434782]
[1770219770807,0.23528217,2165.6,2163.8,1.06445]
[1770219770808,0.00406217,2165.6,2164.3,7.59434782]
[1770219771209,7.63570747,2165.6,2164.3,7.59434782]
[1770219771406,0.23133,2164.5,2163.4,7.59434782]
[1770219771601,7.4004253,2164.2,2163.0,8.05634782]
[1770219771908,7.4004253,2163.7,2162.6,7.59434782]
[1770219772103,7.4004253,2163.7,2162.3,8.05680764]
[1770219772602,7.6318453,2163.7,2162.3,8.05680764]
[1770219772809,7.6318653,2163.5,2162.3,0.46620101]
[1770219773009,7.4004253,2163.5,2162.3,0.46620101]
[1770219773309,7.4004253,2163.2,2162.3,0.46620101]
[1770219773509,7.4004253,2162.8,2161.1,7.59434782]
[1770219773810,7.21459694,2163.4,2161.9,7.16391437]
[1770219774013,7.68181569,2163.7,2162.1,7.16391437]
[1770219774509,7.91323569,2163.7,2162.1,7.16928976]
[1770219774704,0.46721875,2163.7,2162.1,7.16928976]
[1770219775007,0.46721875,2163.7,2162.3,7.39547437]
[1770219775206,7.66459694,2164.4,2162.7,7.39543437]
[1770219775402,0.45,2164.4,2163.1,8.22872437]
[1770219775609,0.45,2164.4,2163.3,7.39536437]
[1770219776207,0.45386752,2164.4,2163.3,7.39536437]
[1770219776711,7.66846446,2164.4,2162.9,7.16391437]
[1770219777610,7.21459694,2164.2,2162.7,0.462]
[1770219778204,7.65272027,2164.0,2162.7,7.62387986]
[1770219778519,8.11472027,2164.1,2162.7,7.62387986]
[1770219779213,8.11472027,2164.1,2162.7,0.462]
[1770219779614,8.34610027,2164.1,2162.7,0.462]
[1770219779816,8.34610027,2164.1,2162.2,7.16187986]
[1770219779817,7.65272027,2164.0,2162.2,7.16187986]
[1770219780017,7.65272027,2163.9,2162.2,7.39345986]
[1770219780213,7.65272027,2163.5,2162.1,0.00537539]
[1770219780409,5.39316248,2163.7,2162.2,7.16187986]
[1770219780716,0.462,2164.1,2162.9,7.16187986]
[1770219780913,8.11472027,2164.1,2162.2,7.39344986]
[1770219781115,7.88417027,2163.5,2162.2,7.16187986]
[1770219781412,7.88421027,2163.1,2162.1,0.00537539]
[1770219781612,7.65272027,2163.1,2162.1,0.00015664]
[1770219781817,40.8,2163.4,2162.1,7.1620365]
[1770219782112,40.8,2163.4,2162.1,0.00015664]
[1770219782113,7.65272027,2163.3,2162.1,0.00015664]
[1770219782313,7.65272027,2162.9,2162.1,0.00015664]
[1770219782509,12.19866422,2162.8,2162.1,0.00015664]
[1770219782709,12.19866422,2162.7,2162.1,0.00015664]
[1770219782908,7.65272027,2162.3,2160.4,7.16187986]
[1770219783110,7.65272027,2162.1,2160.4,7.39363986]
[1770219783310,4.54594395,2162.0,2160.9,7.16187986]
[1770219783519,0.462,2162.2,2161.2,7.39355986]
[1770219783813,7.65272027,2162.0,2160.7,0.462]
[1770219784009,7.65272027,2161.8,2160.7,0.00378146]
[1770219784215,7.65272027,2161.6,2160.7,0.00378146]
[1770219784521,7.65272027,2161.4,2159.6,7.16187986]
[1770219784721,4.51346437,2161.5,2159.6,7.16187986]
[1770219784722,7.65272027,2161.2,2159.6,7.16187986]
[1770219785021,7.65272027,2161.0,2159.6,7.16187986]
[1770219785215,7.65272027,2161.0,2158.8,1.06694]
[1770219785216,7.65272027,2161.0,2159.2,7.48541519]
[1770219785413,7.26266308,2160.6,2158.8,1.06693]
[1770219785611,7.26266308,2160.6,2159.1,7.48541519]
[1770219785815,7.26266308,2160.6,2159.5,7.48541519]
[1770219785816,0.462,2160.6,2159.5,7.48541519]
[1770219786321,7.72466308,2160.6,2158.8,8.78430519]
[1770219786513,7.72466308,2160.6,2158.8,7.72060251]
[1770219787014,7.26266308,2160.4,2158.8,7.72060251]
[1770219787422,7.26266308,2160.4,2158.8,0.00324732]
[1770219787918,7.26266308,2160.4,2158.8,7.48866251]
[1770219789123,7.49443308,2160.4,2158.8,7.48866251]
[1770219789321,7.88122867,2160.2,2158.8,0.00324732]
[1770219789524,7.64943867,2160.2,2158.8,0.00324732]
[1770219790419,7.64943867,2160.2,2158.8,7.316647]
[1770219790625,41.263,2160.5,2158.8,7.548587]
[1770219790819,8.11243867,2160.5,2159.0,7.31339968]
[1770219791228,7.64943867,2160.3,2158.8,0.00324732]
[1770219791523,7.88123867,2160.1,2158.8,0.00324732]
[1770219792121,7.64943867,2159.8,2158.8,0.00324732]
[1770219792316,7.64943867,2159.8,2158.1,7.54540968]
[1770219792317,7.64943867,2159.8,2158.1,7.31339968]
[1770219793326,7.64943867,2159.8,2158.3,7.31339968]
[1770219793525,7.64943867,2160.1,2158.3,7.54538968]
[1770219794126,7.88123867,2160.1,2158.3,7.31339968]
[1770219794724,7.64943867,2160.1,2158.9,7.31339968]
[1770219794927,40.8,2160.2,2158.9,7.54531968]
[1770219795325,7.65271208,2161.0,2159.3,1.06669]
[1770219795625,7.65271208,2161.0,2159.8,7.31339968]
[1770219795832,7.64943867,2160.8,2159.8,0.00388411]
[1770219796128,0.00327341,2161.0,2160.0,7.31339968]
[1770219796823,7.65271208,2161.0,2159.8,0.00388411]
[1770219797128,0.463,2161.5,2160.2,7.31339968]
[1770219797330,0.463,2161.5,2160.4,7.54516968]
[1770219797721,40.8,2161.7,2160.4,7.54516968]
[1770219798023,0.463,2162.1,2160.7,7.31339968]
[1770219798224,0.005437,2161.7,2160.9,7.31339968]
[1770219798425,8.11243867,2162.1,2160.9,7.31339968]
[1770219798728,7.64943867,2161.9,2160.5,7.31339968]
[1770219798923,7.64943867,2161.9,2159.6,1.29839]
[1770219798924,7.64943867,2161.5,2160.1,7.31339968]
[1770219799526,7.65510114,2161.5,2160.1,7.31339968]
[1770219799728,7.65510114,2161.5,2160.3,7.31339968]
[1770219800331,0.00566247,2161.5,2160.3,7.54516968]
[1770219800930,7.65510114,2161.5,2159.8,0.23571411]
[1770219801230,7.88676114,2161.5,2159.9,7.31339968]
[1770219801733,7.64943867,2161.3,2159.9,7.31339968]
[1770219802333,0.00566247,2161.5,2160.3,7.54517968]
[1770219802832,7.65510114,2161.5,2160.3,7.54517968]
[1770219803034,7.65510114,2161.5,2159.9,7.31339968]
[1770219803335,7.64943867,2161.3,2159.8,7.31728379]
[1770219803534,7.64943867,2161.0,2159.8,7.31728379]
[1770219804530,7.64943867,2161.0,2159.8,0.00388411]
[1770219804735,7.64943867,2161.0,2159.0,0.23191]
[1770219804736,7.55192685,2160.5,2159.0,7.94929629]
[1770219805139,7.78370685,2160.3,2158.6,7.94934629]
[1770219805340,10.19825296,2160.6,2159.0,7.71738629]
[1770219805544,7.55192685,2160.4,2159.0,7.71738629]
[1770219805734,48.35192685,2160.4,2159.0,7.72180286]
[1770219805940,7.55192685,2160.3,2159.0,7.72180286]
[1770219806839,7.55192685,2159.8,2159.0,0.00441657]
[1770219807039,7.55619176,2159.8,2158.5,8.18038629]
[1770219807239,7.55619176,2159.8,2158.6,7.94934629]
[1770219807636,7.55192685,2159.6,2158.2,7.71738629]
[1770219808039,0.00426491,2159.8,2158.7,7.71738629]
[1770219808237,0.00426491,2159.8,2158.7,7.94933629]
[1770219808639,7.55619176,2159.8,2158.7,7.71738629]
[1770219808938,0.00426491,2159.8,2158.8,0.23194]
[1770219809143,0.00426491,2159.8,2158.9,7.71738629]
[1770219809344,0.463,2160.1,2159.2,7.94927629]
[1770219809543,3.4747,2161.1,2159.8,7.71738629]
[1770219809544,2.64632611,2160.9,2159.8,7.71738629]
[1770219809744,7.55192685,2160.9,2159.8,7.94921629]
[1770219810043,4.5061983,2160.8,2159.8,7.94921629]
[1770219810243,4.5061983,2160.7,2159.8,7.71738629]
[1770219810443,0.00559411,2160.7,2159.9,7.94920629]
[1770219810939,7.55192685,2161.1,2159.8,0.00419474]
[1770219811137,2.64632611,2160.8,2159.8,7.72158103]
[1770219811342,2.64632611,2160.7,2159.8,7.72158103]
[1770219811541,7.55192685,2160.5,2159.8,0.00419474]
[1770219811747,7.55192685,2160.3,2159.0,7.71738629]
[1770219811944,7.55192685,2160.9,2159.7,7.71738629]
[1770219812246,7.55192685,2160.8,2159.7,7.71738629]
[1770219812440,7.55192685,2160.8,2159.6,0.23185]
[1770219812744,7.55682305,2160.8,2159.6,7.95375301]
[1770219813540,7.55682305,2160.8,2159.6,7.72190301]
[1770219813740,7.55682305,2160.8,2159.6,0.00451672]
[1770219814245,47.77577073,2160.7,2159.6,0.00451672]
[1770219814445,7.55192685,2160.6,2159.6,0.00451672]
[1770219815440,0.0048962,2160.8,2159.8,7.71738629]
[1770219815643,7.55192685,2161.4,2160.5,0.23175]
[1770219815947,7.55192685,2161.8,2160.6,7.94912629]
[1770219816145,7.55192685,2161.8,2160.2,7.71738629]
[1770219816442,7.78359685,2161.3,2159.8,7.94921629]
[1770219816645,7.55641024,2161.3,2159.7,7.71738629]
[1770219816841,7.55192685,2161.2,2160.0,7.94919629]
[1770219817038,0.00448339,2161.3,2160.3,7.94915629]
[1770219817237,0.00448339,2161.3,2160.4,7.94915629]
[1770219817838,7.55641024,2161.3,2159.9,7.71738629]
[1770219818041,7.55641024,2161.3,2160.1,7.94918629]
[1770219818244,7.55641024,2161.3,2159.6,0.00451672]
[1770219818245,7.55192685,2161.1,2159.7,7.71738629]
[1770219818440,7.55192685,2161.0,2159.7,7.71738629]
[1770219818750,8.24663685,2161.0,2159.7,7.71738629]
[1770219818947,8.24663685,2161.0,2159.6,7.72190301]
[1770219819540,7.55192685,2160.8,2159.6,0.00451672]
[1770219819838,40.68684388,2161.0,2159.6,0.00451672]
[1770219819839,0.463,2161.0,2159.9,0.23182]
[1770219820039,7.55192685,2161.2,2159.9,7.94920629]
[1770219820237,0.00448339,2161.3,2160.1,7.94917629]
[1770219820640,7.55192685,2161.2,2159.7,7.71738629]
[1770219820843,0.00448339,2161.3,2160.1,7.94917629]
[1770219821039,0.00448339,2161.3,2160.4,7.94915629]
[1770219821749,7.55641024,2161.3,2160.1,7.94918629]
[1770219822349,7.55192685,2161.1,2159.7,7.71738629]
[1770219822547,7.55192685,2160.8,2159.6,7.72190301]
[1770219822850,7.55192685,2161.2,2159.8,7.71738629]
[1770219823250,7.55192685,2161.1,2159.8,7.71738629]
[1770219823850,52.31714434,2161.0,2159.6,0.00451672]
[1770219824148,7.78365685,2160.8,2159.6,0.00451672]
[1770219824342,4.30966361,2160.7,2159.6,0.00451672]
[1770219824544,40.22384388,2160.9,2159.6,7.72190301]
[1770219824545,4.30966361,2160.6,2159.6,7.72190301]
[1770219824745,40.22384388,2160.9,2159.6,7.72190301]
[1770219824946,4.31300594,2160.8,2159.6,7.72190301]
[1770219825146,4.31300594,2160.7,2159.6,7.72190301]
[1770219825344,7.55192685,2160.5,2159.6,0.00451672]
[1770219825545,7.55192685,2160.5,2159.2,7.71738629]
[1770219825546,4.31300594,2160.4,2159.2,7.71738629]
[1770219825744,4.31300594,2160.3,2159.5,7.71738629]
[1770219825942,47.77577073,2160.7,2159.6,7.94923629]
[1770219826146,4.31041076,2160.6,2159.8,0.23183]
[1770219826349,0.463,2160.9,2159.8,7.94921629]
[1770219826649,4.31063721,2160.8,2159.8,7.95264466]
[1770219826842,40.8,2160.9,2159.8,7.95264466]
[1770219826843,4.31063721,2160.7,2159.8,7.95264466]
[1770219827044,4.31307312,2160.6,2159.8,0.00342837]
[1770219827242,11.86504198,2160.5,2159.8,0.00342837]
[1770219827442,4.31311513,2160.4,2159.2,7.71738629]
[1770219827642,4.31311513,2160.3,2159.2,7.94927629]
[1770219827848,47.77577073,2160.7,2159.4,7.71738629]
[1770219828044,7.55192685,2160.7,2159.4,7.71738629]
[1770219828248,40.91855388,2161.0,2159.4,7.71738629]
[1770219828249,7.55192685,2160.5,2159.4,7.71738629]
[1770219828450,4.31565073,2160.4,2159.4,7.72134968]
[1770219828653,4.31565073,2160.3,2159.4,7.72134968]
[1770219828951,4.31802486,2160.2,2159.4,7.72134968]
[1770219829152,7.55192685,2160.5,2159.4,7.72134968]
[1770219829353,4.31947416,2160.4,2159.4,7.72134968]
[1770219829547,47.77577073,2160.7,2159.4,7.72134968]
[1770219829752,4.32002134,2160.6,2159.4,7.95321968]
[1770219829948,4.32002134,2160.5,2159.4,7.95321968]
[1770219830154,4.32002134,2160.4,2159.4,7.95321968]
[1770219830351,7.55192685,2160.5,2159.4,0.00396339]
[1770219830552,7.55192685,2159.7,2158.6,7.71738629]
[1770219830855,40.22384388,2160.2,2159.1,7.71738629]
[1770219831055,4.31754737,2160.1,2159.3,7.94927629]
[1770219831257,48.23877073,2160.5,2159.3,7.94927629]
[1770219831258,7.55192685,2160.4,2159.3,7.71738629]
[1770219831456,7.55192685,2160.2,2159.0,7.71738629]
[1770219831650,7.55192685,2160.0,2159.0,7.72158416]
[1770219832556,7.55192685,2159.8,2159.0,0.00419787]
[1770219833257,11.81278776,2159.7,2158.6,7.71738629]
[1770219833458,4.26091144,2159.6,2158.6,7.71738629]
[1770219833653,11.41054258,2159.5,2158.4,0.23198]
[1770219833849,7.1502285,2159.5,2158.4,7.33242154]
[1770219834356,4.25890909,2159.4,2158.4,7.33784404]
[1770219834553,7.1502285,2159.5,2158.4,7.33784404]
[1770219834759,4.25901927,2159.4,2158.4,7.33784404]